bitfinex-derivatives/quotes_BNBF0:USTF0_20250608
["timestamp","ask_amount","ask_price","bid_price","bid_amount"]
[1749388729287,1.04274496,650.33,649.76,2.30506443]
[1749388729586,2.13874496,650.34,649.76,2.30506443]
[1749388729785,1.04274496,650.33,649.76,2.30506443]
[1749388729982,2.13874496,650.34,649.76,2.30506443]
[1749388730286,1.04274496,650.33,649.71,2.30506443]
[1749388730486,1.04274496,650.32,649.71,2.30506443]
[1749388730685,1.04274496,650.33,649.71,2.30506443]
[1749388730883,1.04274496,650.32,649.71,2.30506443]
[1749388731083,1.04274496,650.33,649.72,2.30506443]
[1749388731283,1.04274496,650.32,649.72,2.30506443]
[1749388731487,1.04274496,650.33,649.72,2.30506443]
[1749388731687,1.04274496,650.32,649.72,2.30506443]
[1749388731888,1.04274496,650.31,649.72,2.30506443]
[1749388732188,1.04274496,650.33,649.7,2.30506443]
[1749388732388,1.096,650.34,649.68,2.30506443]
[1749388732588,1.096,650.34,649.73,2.30506443]
[1749388733187,1.096,650.34,649.75,2.30506443]
[1749388733786,1.096,650.34,649.74,2.30506443]
[1749388734188,2.13874496,650.34,649.74,2.30506443]
[1749388734387,1.04274496,650.33,649.74,2.30506443]
[1749388734588,1.096,650.34,649.73,2.30506443]
[1749388735090,1.096,650.34,649.17,3.8359322]
[1749388735091,1.096,650.34,649.74,2.30506443]
[1749388735890,1.096,650.34,649.85,2.30506443]
[1749388736091,1.096,650.34,649.84,2.30506443]
[1749388737688,0.26764907,650.35,649.84,2.30506443]
[1749388738990,0.26764907,650.35,649.83,2.30506443]
[1749388740091,0.945,650.34,649.83,2.30506443]
[1749388743888,0.945,650.34,649.84,2.30506443]
[1749388744193,0.945,650.34,649.85,2.30506443]
[1749388745796,0.945,650.34,649.86,2.30506443]
[1749388747297,0.945,650.34,649.87,2.30506443]
[1749388748098,0.945,650.34,649.77,2.30506443]
[1749388749197,0.945,650.34,649.82,2.30506443]
[1749388749399,0.945,650.34,649.85,2.30506443]
[1749388749596,0.945,650.34,649.86,2.30506443]
[1749388750296,0.945,650.34,649.83,2.30506443]
[1749388750501,0.945,650.34,649.84,2.30506443]
[1749388750701,0.945,650.34,649.85,2.30506443]
[1749388751202,0.945,650.34,649.84,2.30506443]
[1749388752102,0.945,650.34,649.83,2.30506443]
[1749388752998,0.945,650.34,649.84,2.30506443]
[1749388753199,0.945,650.34,649.83,2.30506443]
[1749388754098,0.945,650.34,649.82,2.30506443]
[1749388755097,0.945,650.34,649.81,2.30506443]
[1749388756207,0.945,650.34,649.8,2.30506443]
[1749388757302,0.945,650.34,649.79,2.30506443]
[1749388757602,0.945,650.34,649.77,2.30506443]
[1749388758007,0.945,650.34,649.85,2.30506443]
[1749388758408,0.945,650.34,649.35,3.8359322]
[1749388758409,0.945,650.34,649.76,2.30506443]
[1749388759511,0.945,650.34,649.77,2.30506443]
[1749388760307,0.945,650.34,649.76,2.30506443]
[1749388761012,0.945,650.34,649.77,2.30506443]
[1749388765011,0.26764907,650.35,649.68,2.30506443]
[1749388767711,1.28,650.34,649.68,2.30506443]
[1749388768412,1.28,650.34,649.71,2.30506443]
[1749388769712,1.28,650.34,649.72,2.30506443]
[1749388771709,1.28,650.34,649.7,2.30506443]
[1749388774913,1.28,650.34,649.8,2.30506443]
[1749388775612,1.28,650.34,649.81,2.30506443]
[1749388776613,1.28,650.34,649.83,2.30506443]
[1749388779522,1.28,650.34,649.84,2.30506443]
[1749388780823,0.26768304,650.22,649.84,2.30506443]
[1749388781522,0.26768304,650.22,649.05,0.26773556]
[1749388781523,0.26768304,650.22,649.89,2.30506443]
[1749388782220,0.26768304,650.22,649.9,2.30506443]
[1749388782422,0.26768304,650.22,649.89,2.30506443]
[1749388782620,0.26768304,650.22,649.9,2.30506443]
[1749388783320,0.26768304,650.22,649.46,3.8359322]
[1749388783321,0.26768304,650.22,649.91,2.30506443]
[1749388785724,0.26768304,650.22,649.92,2.30506443]
[1749388786626,0.26768304,650.22,649.93,2.30506443]
[1749388789025,0.26768304,650.22,649.94,2.30506443]
[1749388790625,0.26768304,650.22,649.89,2.30506443]
[1749388791331,0.26768304,650.22,649.88,2.30506443]
[1749388791527,0.26768304,650.22,649.89,2.30506443]
[1749388794830,0.26768304,650.22,649.93,2.30506443]
[1749388797634,0.26768304,650.22,649.94,2.30506443]
[1749388798533,0.26768304,650.22,649.93,2.30506443]
[1749388798736,0.26768304,650.22,649.94,2.30506443]
[1749388799036,0.26768304,650.22,649.93,2.30506443]
[1749388799237,0.26768304,650.22,649.94,2.30506443]
[1749388800438,0.26768304,650.22,649.98,2.30506443]
[1749388801439,1.28,650.34,649.98,2.30506443]
[1749388801839,0.26766863,650.26,649.98,2.30506443]
[1749388802238,0.26766863,650.26,649.99,2.30506443]
[1749388802740,0.26766863,650.26,649.98,2.30506443]
[1749388803140,0.26766863,650.26,649.99,2.30506443]
[1749388805942,0.26766863,650.26,649.96,2.30506443]
[1749388806138,0.26766863,650.26,649.97,2.30506443]
[1749388806637,0.26766863,650.26,649.96,2.30506443]
[1749388813044,0.26766863,650.26,649.97,2.30506443]
[1749388813243,0.26766863,650.26,649.96,2.30506443]
[1749388813442,0.26766863,650.26,649.97,2.30506443]
[1749388816949,0.26766863,650.26,649.95,2.30506443]
[1749388822050,0.26766863,650.26,649.93,2.30506443]
[1749388823249,0.26766863,650.26,649.94,2.30506443]
[1749388825452,0.26766863,650.26,649.95,2.30506443]
[1749388825652,0.26766863,650.26,649.94,2.30506443]
[1749388826247,0.26766863,650.26,649.93,2.30506443]
[1749388826750,0.26766863,650.26,649.96,2.30506443]
[1749388827553,0.26766863,650.26,649.95,2.30506443]
[1749388827753,0.26766863,650.26,649.96,2.30506443]
[1749388828250,0.26766863,650.26,649.94,2.30506443]
[1749388828454,0.26766863,650.26,649.93,2.30506443]
[1749388828950,0.26766863,650.26,649.94,2.30506443]
[1749388829153,1.314,650.25,649.94,2.30506443]
[1749388830450,1.314,650.25,649.93,2.30506443]
[1749388831751,1.314,650.25,649.94,2.30506443]
[1749388832052,1.314,650.25,649.93,2.30506443]
[1749388833957,1.314,650.25,649.91,2.30506443]
[1749388835455,1.314,650.25,649.92,2.30506443]
[1749388838857,1.314,650.25,649.91,2.30506443]
[1749388839361,1.314,650.25,649.92,2.30506443]
[1749388839959,1.314,650.25,649.91,2.30506443]
[1749388840161,1.314,650.25,649.92,2.30506443]
[1749388841257,1.314,650.25,649.93,2.30506443]
[1749388842058,1.314,650.25,649.94,2.30506443]
[1749388842265,1.314,650.25,649.91,2.30506443]
[1749388842565,1.314,650.25,649.87,2.30506443]
[1749388843162,1.314,650.25,649.86,2.30506443]
[1749388843566,1.314,650.25,649.88,2.30506443]
[1749388844067,1.314,650.25,649.87,2.30506443]
[1749388844862,1.314,650.25,649.88,2.30506443]
[1749388845265,1.314,650.25,649.87,2.30506443]
[1749388845565,1.314,650.25,649.86,2.30506443]
[1749388848170,1.314,650.25,649.88,2.30506443]
[1749388851977,1.314,650.25,649.87,2.30506443]
[1749388858781,1.314,650.25,649.86,2.30506443]
[1749388859678,1.314,650.25,649.84,2.30506443]
[1749388861183,0.26766863,650.26,649.84,2.30506443]
[1749388862583,0.26766863,650.26,649.83,2.30506443]
[1749388863082,0.26766863,650.26,649.84,2.30506443]
[1749388863883,0.26766863,650.26,649.83,2.30506443]
[1749388864081,0.26766863,650.26,649.37,3.8359322]
[1749388864082,0.26766863,650.26,649.84,2.30506443]
[1749388864985,1.516,650.25,649.84,2.30506443]
[1749388865585,1.516,650.25,649.83,2.30506443]
[1749388866888,1.516,650.25,649.18,0.26766863]
[1749388866889,1.516,650.25,649.72,2.30506443]
[1749388867288,1.516,650.25,649.73,2.30506443]
[1749388867491,1.516,650.25,649.71,2.30506443]
[1749388867785,1.516,650.25,649.68,2.30506443]
[1749388868486,1.516,650.25,649.69,2.30506443]
[1749388869689,1.516,650.25,649.71,2.30506443]
[1749388870089,1.516,650.25,649.7,2.30506443]
[1749388870487,1.516,650.25,649.71,2.30506443]
[1749388870786,1.516,650.25,649.7,2.30506443]
[1749388871289,1.516,650.25,649.67,2.30506443]
[1749388872592,1.516,650.25,649.66,2.30506443]
[1749388876596,1.516,650.25,649.65,2.30506443]
[1749388876796,1.516,650.25,649.7,2.30506443]
[1749388877098,1.516,650.25,649.71,2.30506443]
[1749388877592,1.516,650.25,649.65,2.30506443]
[1749388877793,1.516,650.25,649.67,2.30506443]
[1749388878095,1.516,650.25,649.68,2.30506443]
[1749388878693,1.516,650.25,649.69,2.30506443]
[1749388881196,1.516,650.25,649.18,0.26766863]
[1749388881197,1.516,650.25,649.71,2.30506443]
[1749388881898,0.26766863,650.26,649.71,2.30506443]
[1749388883897,0.26766863,650.26,649.67,2.30506443]
[1749388885598,1.338,650.25,649.67,2.30506443]
[1749388887498,1.338,650.25,649.76,2.30506443]
[1749388888801,1.338,650.25,649.74,2.30506443]
[1749388889601,1.338,650.25,649.75,2.30506443]
[1749388889801,1.338,650.25,649.74,2.30506443]
[1749388890206,1.338,650.25,649.75,2.30506443]
[1749388891203,1.338,650.25,649.74,2.30506443]
[1749388892808,1.338,650.25,649.75,2.30506443]
[1749388894705,1.338,650.25,649.76,2.30506443]
[1749388895405,1.338,650.25,649.7,2.30506443]
[1749388895809,1.338,650.25,649.69,2.30506443]
[1749388896509,1.338,650.25,649.7,2.30506443]
[1749388896809,0.26766863,650.26,649.7,2.30506443]
[1749388897005,0.26766863,650.26,649.69,2.30506443]
[1749388897209,0.26766863,650.26,649.7,2.30506443]
[1749388898606,0.26766863,650.26,649.72,2.30506443]
[1749388899010,1.504,650.25,649.72,2.30506443]
[1749388899509,1.504,650.25,649.73,2.30506443]
[1749388901105,1.504,650.25,649.74,2.30506443]
[1749388904008,1.504,650.25,649.73,2.30506443]
[1749388905408,1.504,650.25,649.79,2.30506443]
[1749388908107,1.504,650.25,649.8,2.30506443]
[1749388909010,1.504,650.25,649.79,2.30506443]
[1749388909211,1.504,650.25,649.8,2.30506443]
[1749388916316,1.504,650.25,649.73,2.30506443]
[1749388921514,1.504,650.25,649.71,2.30506443]
[1749388921717,1.04047825,650.24,649.66,2.30506443]
[1749388922014,1.04047825,650.23,649.65,2.30506443]
[1749388922214,1.04047825,650.22,649.65,2.30506443]
[1749388922514,1.504,650.25,649.63,2.30506443]
[1749388922515,1.04047825,650.21,649.63,2.30506443]
[1749388922718,1.04047825,650.2,649.63,2.30506443]
[1749388922917,1.04047825,650.24,649.63,2.30506443]
[1749388923115,1.04047825,650.23,649.63,2.30506443]
[1749388923317,1.04047825,650.22,649.63,2.30506443]
[1749388923518,1.04047825,650.21,649.63,2.30506443]
[1749388923721,1.04047825,650.24,649.7,2.30506443]
[1749388923921,1.04047825,650.23,649.7,2.30506443]
[1749388924119,1.04047825,650.22,649.7,2.30506443]
[1749388924317,1.04047825,650.24,649.7,2.30506443]
[1749388924623,1.04047825,650.23,649.7,2.30506443]
[1749388924920,1.04047825,650.22,649.7,2.30506443]
[1749388925122,1.04047825,650.24,649.7,2.30506443]
[1749388925322,1.04047825,650.23,649.7,2.30506443]
[1749388925520,1.04047825,650.24,649.7,2.30506443]
[1749388925719,1.04047825,650.23,649.7,2.30506443]
[1749388925920,1.04047825,650.22,649.7,2.30506443]
[1749388926118,1.04047825,650.24,649.7,2.30506443]
[1749388926322,1.04047825,650.23,649.7,2.30506443]
[1749388926524,1.04047825,650.24,649.7,2.30506443]
[1749388926724,1.04047825,650.23,649.7,2.30506443]
[1749388926920,1.04047825,650.24,649.7,2.30506443]
[1749388927127,1.04047825,650.23,649.7,2.30506443]
[1749388927331,1.04047825,650.22,649.67,2.30506443]
[1749388927527,1.04047825,650.21,649.67,2.30506443]
[1749388927726,1.04047825,650.24,649.67,2.30506443]
[1749388928028,1.04047825,650.23,649.67,2.30506443]
[1749388928226,1.04047825,650.22,649.67,2.30506443]
[1749388928426,1.04047825,650.24,649.67,2.30506443]
[1749388928625,1.04047825,650.23,649.67,2.30506443]
[1749388928829,1.04047825,650.22,649.67,2.30506443]
[1749388929028,1.04047825,650.24,649.67,2.30506443]
[1749388929227,1.04047825,650.23,649.67,2.30506443]
[1749388929526,1.04047825,650.24,649.66,2.30506443]
[1749388929729,1.04047825,650.23,649.66,2.30506443]
[1749388929927,1.04047825,650.24,649.66,2.30506443]
[1749388932130,2.54447825,650.25,649.65,2.30506443]
[1749388933030,2.54447825,650.25,649.66,2.30506443]
[1749388933230,1.04047825,650.24,649.65,2.30506443]
[1749388933829,1.504,650.25,649.65,2.30506443]
[1749388936734,2.54447825,650.25,649.65,2.30506443]
[1749388936934,1.04047825,650.24,649.65,2.30506443]
[1749388937336,1.504,650.25,649.65,2.30506443]
[1749388937534,1.504,650.25,649.64,2.30506443]
[1749388940137,2.54447825,650.25,649.64,2.30506443]
[1749388940335,1.04047825,650.24,649.64,2.30506443]
[1749388940833,1.504,650.25,649.62,2.30506443]
[1749388941337,1.504,650.25,649.61,2.30506443]
[1749388944640,1.504,650.25,649.62,2.30506443]
[1749388944843,1.504,650.25,649.61,2.30506443]
[1749388946341,1.504,650.25,649.6,2.30506443]
[1749388947744,1.504,650.25,649.61,2.30506443]
[1749388948549,1.504,650.25,649.59,2.30506443]
[1749388949542,1.504,650.25,649.6,2.30506443]
[1749388950544,2.54187639,650.25,649.63,2.30506443]
[1749388950743,1.03787639,650.24,649.63,2.30506443]
[1749388951044,1.504,650.25,649.64,2.30506443]
[1749388952847,2.54187639,650.25,649.64,2.30506443]
[1749388953052,1.03787639,650.24,649.64,2.30506443]
[1749388953252,1.504,650.25,649.64,2.30506443]
[1749388954250,1.03787639,650.24,649.62,2.30506443]
[1749388954453,1.03787639,650.23,649.36,2.30506443]
[1749388954653,1.03787639,650.24,649.36,2.30506443]
[1749388954950,1.03787639,650.23,649.36,2.30506443]
[1749388955148,1.03787639,650.25,649.36,2.30506443]
[1749388955448,1.03787639,650.24,649.36,2.30506443]
[1749388955648,1.03787639,650.23,649.36,2.30506443]
[1749388955849,1.03787639,650.25,649.36,2.30506443]
[1749388956050,1.03787639,650.24,649.37,2.30506443]
[1749388956249,1.03787639,650.23,649.37,2.30506443]
[1749388956453,1.03787639,650.25,649.37,2.30506443]
[1749388956653,1.03787639,650.24,649.36,2.30506443]
[1749388956854,1.03787639,650.23,649.36,2.30506443]
[1749388957054,1.03787639,650.22,649.36,2.30506443]
[1749388957253,1.03787639,650.25,649.36,2.30506443]
[1749388957456,1.03787639,650.24,649.36,2.30506443]
[1749388957756,1.03787639,650.23,649.36,2.30506443]
[1749388957961,1.03787639,650.22,649.36,2.30506443]
[1749388958356,1.332,650.23,649.37,2.30506443]
[1749388958754,2.36987639,650.23,649.37,2.30506443]
[1749388959057,1.03787639,650.22,649.37,2.30506443]
[1749388959452,1.332,650.23,649.37,2.30506443]
[1749388959654,1.03787639,650.22,649.37,2.30506443]
[1749388964155,1.03787639,650.22,649.56,2.30506443]
[1749388964361,1.332,650.23,649.56,2.30506443]
[1749388964560,1.332,650.23,649.57,2.30506443]
[1749388965759,1.332,650.23,649.56,2.30506443]
[1749388965960,1.332,650.23,649.57,2.30506443]
[1749388966965,1.332,650.23,649.58,2.30506443]
[1749388967165,2.36987639,650.23,649.58,2.30506443]
[1749388967465,1.03787639,650.22,649.68,2.30506443]
[1749388967966,1.332,650.23,649.56,2.30506443]
[1749388968164,1.332,650.23,649.57,2.30506443]
[1749388968366,1.332,650.23,649.58,2.30506443]
[1749388968765,1.332,650.23,649.59,2.30506443]
[1749388970469,2.36987639,650.23,649.59,2.30506443]
[1749388970663,1.03787639,650.22,649.59,2.30506443]
[1749388971069,0.26766863,650.26,649.6,2.30506443]
[1749388972970,0.26766863,650.26,649.62,2.30506443]
[1749388973472,0.26766863,650.26,649.63,2.30506443]
[1749388974173,0.26766863,650.26,649.73,2.30506443]
[1749388974670,1.455,650.25,649.72,2.30506443]
[1749388974974,1.455,650.25,649.73,2.30506443]
[1749388975271,1.455,650.25,649.75,2.30506443]
[1749388975471,1.455,650.25,649.76,2.30506443]
[1749388975670,1.455,650.25,649.77,2.30506443]
[1749388976175,1.455,650.25,649.76,2.30506443]
[1749388976374,1.455,650.25,649.79,2.30506443]
[1749388976770,1.455,650.25,649.8,2.30506443]
[1749388977172,1.455,650.25,649.79,2.30506443]
[1749388978571,1.455,650.25,649.82,2.30506443]
[1749388979174,1.455,650.25,649.84,2.30506443]
[1749388979378,1.455,650.25,649.85,2.30506443]
[1749388981479,1.455,650.25,649.84,2.30506443]
[1749388982578,1.455,650.25,649.78,2.30506443]
[1749388983284,1.455,650.25,649.77,2.30506443]
[1749388984379,1.455,650.25,649.76,2.30506443]
[1749388985480,1.455,650.25,649.75,2.30506443]
[1749388986279,1.455,650.25,649.72,2.30506443]
[1749388986478,1.455,650.25,649.74,2.30506443]
[1749388987481,1.455,650.25,649.73,2.30506443]
[1749388989486,1.455,650.25,649.72,2.30506443]
[1749388990984,1.455,650.25,649.71,2.30506443]
[1749388992284,1.455,650.25,649.74,2.30506443]
[1749388994090,1.455,650.25,649.71,2.30506443]
[1749388994288,1.455,650.25,649.69,2.30506443]
[1749388994489,1.455,650.25,649.68,2.30506443]
[1749388994887,1.455,650.25,649.69,2.30506443]
[1749388996092,1.455,650.25,649.71,2.30506443]
[1749388996689,1.455,650.25,649.7,2.30506443]
[1749388997994,1.455,650.25,649.69,2.30506443]
[1749388998196,1.455,650.25,649.68,2.30506443]
[1749388998394,1.455,650.25,649.67,2.30506443]
[1749388999296,1.455,650.25,649.66,2.30506443]
[1749389001792,1.455,650.25,649.68,2.30506443]
[1749389002096,0.26773762,650.11,649.68,2.30506443]
[1749389004094,0.26773762,650.11,649.75,2.30506443]
[1749389004293,0.26773762,650.11,649.74,2.30506443]
[1749389004494,0.26773762,650.11,649.75,2.30506443]
[1749389006398,0.26773762,650.11,649.62,2.30506443]
[1749389007299,0.26773762,650.11,649.07,0.26777779]
[1749389007300,0.26773762,650.11,649.63,2.30506443]
[1749389007794,0.26773762,650.11,649.59,2.30506443]
[1749389007996,0.26773762,650.11,649.57,2.30506443]
[1749389008497,0.26773762,650.11,649.58,2.30506443]
[1749389008797,0.26773762,650.11,649.57,2.30506443]
[1749389016403,0.26773762,650.11,649.64,2.30506443]
[1749389017604,0.26773762,650.11,649.67,2.30506443]
[1749389019107,0.26773762,650.11,649.68,2.30506443]
[1749389019306,0.26773762,650.11,649.7,2.30506443]
[1749389020311,0.26773762,650.11,649.71,2.30506443]
[1749389023111,0.26773762,650.11,649.72,2.30506443]
[1749389023611,0.26773762,650.11,649.73,2.30506443]
[1749389024713,0.26773762,650.11,649.74,2.30506443]
[1749389024908,0.26773762,650.11,649.73,2.30506443]
[1749389025913,0.26773762,650.11,649.74,2.30506443]
[1749389027115,0.26773762,650.11,649.31,3.8359322]
[1749389027116,0.26773762,650.11,649.76,2.30506443]
[1749389027916,0.26773762,650.11,649.73,2.30506443]
[1749389028811,0.26773762,650.11,649.74,2.30506443]
[1749389029014,0.26773762,650.11,649.73,2.30506443]
[1749389029814,0.26773762,650.11,649.74,2.30506443]
[1749389032115,0.26773762,650.11,649.75,2.30506443]
[1749389033614,0.26773762,650.11,649.74,2.30506443]
[1749389034814,0.26773762,650.11,649.75,2.30506443]
[1749389035621,0.26773762,650.11,649.74,2.30506443]
[1749389036017,0.26773762,650.11,649.72,2.30506443]
[1749389036522,0.26773762,650.11,649.68,2.30506443]
[1749389037421,0.26773762,650.11,649.67,2.30506443]
[1749389040219,0.26773762,650.11,649.16,3.8359322]
[1749389040421,0.26773762,650.11,649.17,0.3080857]
[1749389050625,0.26773762,650.11,649.7,2.30207724]
[1749389051423,0.26773762,650.11,649.71,2.30207724]
[1749389051723,0.26773762,650.11,649.7,2.30207724]
[1749389052022,0.26773762,650.11,649.72,2.30207724]
[1749389052223,0.26773762,650.11,649.74,2.30207724]
[1749389052425,0.26773762,650.11,649.76,2.30207724]
[1749389052926,0.26773762,650.11,649.77,2.30207724]
[1749389053129,0.26773762,650.11,649.76,2.30207724]
[1749389053333,0.26773762,650.11,649.77,2.30207724]
[1749389053632,0.26773762,650.11,649.76,2.30207724]
[1749389054731,0.26773762,650.11,649.78,2.30207724]
[1749389055431,0.26773762,650.11,649.79,2.30207724]
[1749389055829,0.26773762,650.11,649.8,2.30207724]
[1749389056226,0.26773762,650.11,649.81,2.30207724]
[1749389056431,0.26773762,650.11,649.82,2.30207724]
[1749389057136,0.26773762,650.11,649.83,2.30207724]
[1749389059138,0.26773762,650.11,649.84,2.30207724]
[1749389060240,0.26773762,650.11,649.83,2.30207724]
[1749389060840,0.26773762,650.11,649.37,3.8359322]
[1749389060841,0.26773762,650.11,649.84,2.30207724]
[1749389061943,0.26773762,650.11,649.81,2.30207724]
[1749389062539,0.26773762,650.11,649.8,2.30207724]
[1749389062943,0.26773762,650.11,649.81,2.30207724]
[1749389065045,0.26773762,650.11,649.8,2.30207724]
[1749389067344,0.26773762,650.11,649.81,2.30207724]
[1749389068348,0.26773762,650.11,649.8,2.30207724]
[1749389069846,0.26773762,650.11,649.81,2.30207724]
[1749389071545,1.26,650.1,649.81,2.30207724]
[1749389071749,1.26,650.1,649.87,2.30207724]
[1749389072350,1.26,650.1,649.84,2.30207724]
[1749389074051,1.26,650.1,649.83,2.30207724]
[1749389075050,1.26,650.1,649.82,2.30207724]
[1749389075648,1.26,650.1,649.79,2.30207724]
[1749389076851,1.26,650.1,649.78,2.30207724]
[1749389077053,1.26,650.1,649.77,2.30207724]
[1749389077455,1.26,650.1,649.74,2.30207724]
[1749389082457,1.26,650.1,649.75,2.30207724]
[1749389084257,1.26,650.1,649.76,2.30207724]
[1749389084460,1.26,650.1,649.77,2.30207724]
[1749389084956,1.26,650.1,649.78,2.30207724]
[1749389085161,1.26,650.1,649.79,2.30207724]
[1749389085356,1.26,650.1,649.81,2.30207724]
[1749389086357,1.26,650.1,649.28,3.8359322]
[1749389086358,1.26,650.1,649.82,2.30207724]
[1749389086860,1.26,650.1,649.83,2.30207724]
[1749389087459,1.26,650.1,649.31,3.8359322]
[1749389087460,1.26,650.1,649.87,2.30207724]
[1749389088460,1.26,650.1,649.88,2.30207724]
[1749389091166,1.26,650.1,649.89,2.30207724]
[1749389091365,1.26,650.1,649.88,2.30207724]
[1749389092564,1.26,650.1,649.89,2.30207724]
[1749389093369,1.26,650.1,649.87,2.30207724]
[1749389094466,1.26,650.1,649.86,2.30207724]
[1749389094864,1.26,650.1,649.89,2.30207724]
[1749389095766,1.26,650.1,649.88,2.30207724]
[1749389096563,1.26,650.1,649.84,2.30207724]
[1749389100168,1.26,650.1,649.85,2.30207724]
[1749389100469,1.26,650.1,649.84,2.30207724]
[1749389101768,1.26,650.1,649.85,2.30207724]
[1749389101969,1.26,650.1,649.84,2.30207724]
[1749389102172,1.26,650.1,649.85,2.30207724]
[1749389103168,1.26,650.1,649.86,2.30207724]
[1749389105572,1.26,650.1,649.87,2.30207724]
[1749389105773,1.26,650.1,649.88,2.30207724]
[1749389106170,1.26,650.1,649.86,2.30207724]
[1749389106372,1.26,650.1,649.9,2.30207724]
[1749389108274,1.26,650.1,649.91,2.30207724]
[1749389111475,1.26,650.1,649.89,2.30207724]
[1749389111675,1.26,650.1,649.88,2.30207724]
[1749389112879,1.26,650.1,649.89,2.30207724]
[1749389113279,1.26,650.1,649.9,2.30207724]
[1749389113484,1.26,650.1,649.89,2.30207724]
[1749389113685,1.26,650.1,649.72,2.30207724]
[1749389114481,1.26,650.1,649.71,2.30207724]
[1749389114681,0.26773762,650.11,649.71,2.30207724]
[1749389118389,1.532,650.1,649.71,2.30207724]
[1749389121084,1.532,650.1,649.7,2.30207724]
[1749389121292,1.532,650.1,649.72,2.30207724]
[1749389122487,1.532,650.1,649.73,2.30207724]
[1749389123587,1.532,650.1,649.88,2.30207724]
[1749389124288,1.532,650.1,649.89,2.30207724]
[1749389124687,1.532,650.1,649.9,2.30207724]
[1749389124893,1.532,650.1,649.83,2.30207724]
[1749389126193,1.532,650.1,649.82,2.30207724]
[1749389128990,1.532,650.1,649.83,2.30207724]
[1749389129395,1.532,650.1,649.89,2.30207724]
[1749389132398,1.532,650.1,649.88,2.30207724]
[1749389134694,1.532,650.1,649.93,2.30207724]
[1749389137002,1.532,650.1,649.94,2.30207724]
[1749389140499,1.532,650.1,649.95,2.30207724]
[1749389141701,1.532,650.1,649.92,2.30207724]
[1749389145404,1.532,650.1,649.93,2.30207724]
[1749389146906,1.532,650.1,649.92,2.30207724]
[1749389147308,1.532,650.1,649.93,2.30207724]
[1749389147806,1.532,650.1,649.92,2.30207724]
[1749389148405,1.532,650.1,649.93,2.30207724]
[1749389148610,1.532,650.1,649.92,2.30207724]
[1749389148807,1.532,650.1,649.93,2.30207724]
[1749389149011,1.532,650.1,649.92,2.30207724]
[1749389149311,1.532,650.1,649.93,2.30207724]
[1749389151610,1.532,650.1,649.97,2.30207724]
[1749389158323,1.532,650.1,649.95,2.30207724]
[1749389162918,1.532,650.1,649.93,2.30207724]
[1749389163120,1.532,650.1,649.92,2.30207724]
[1749389163620,1.532,650.1,649.88,2.30207724]
[1749389163824,1.532,650.1,649.86,2.30207724]
[1749389164222,1.532,650.1,649.4,3.8359322]
[1749389164223,1.532,650.1,649.84,2.30207724]
[1749389164423,1.532,650.1,649.82,2.30207724]
[1749389164625,1.532,650.1,649.81,2.30207724]
[1749389164925,1.532,650.1,649.73,2.30207724]
[1749389165425,1.532,650.1,649.72,2.30207724]
[1749389166222,1.532,650.1,649.67,2.30207724]
[1749389167429,1.532,650.1,649.66,2.30207724]
[1749389169328,1.532,650.1,649.65,2.30207724]
[1749389171434,0.26773762,650.11,649.65,2.30207724]
[1749389172429,0.26773762,650.11,649.19,0.26771805]
[1749389172430,0.26773762,650.11,649.66,2.30207724]
[1749389173430,0.26773762,650.11,649.65,2.30207724]
[1749389173638,0.26773762,650.11,649.66,2.30207724]
[1749389174335,1.472,650.1,649.66,2.30207724]
[1749389174938,1.472,650.1,649.69,2.30207724]
[1749389176138,1.472,650.1,649.81,2.30207724]
[1749389176340,1.472,650.1,649.82,2.30207724]
[1749389180043,1.472,650.1,649.77,2.30207724]
[1749389180242,1.472,650.1,649.76,2.30207724]
[1749389181144,1.472,650.1,649.77,2.30207724]
[1749389182347,1.472,650.1,649.29,3.8359322]
[1749389182348,1.472,650.1,649.76,2.30207724]
[1749389183543,1.472,650.1,649.75,2.30207724]
[1749389184044,1.472,650.1,649.76,2.30207724]
[1749389184444,1.472,650.1,649.77,2.30207724]
[1749389185048,1.472,650.1,649.76,2.30207724]
[1749389185245,1.472,650.1,649.77,2.30207724]
[1749389185445,1.472,650.1,649.81,2.30207724]
[1749389185651,1.472,650.1,649.82,2.30207724]
[1749389187052,1.472,650.1,649.83,2.30207724]